[Event "Krakow Championship-C 2022"]
[Site "Krakow"]
[Date "2022.07.01"]
[Round "8.4"]
[White "Krasuski, Pawel"]
[Black "Diachek, Andriy"]
[Result "1/2-1/2"]
[ECO "C50"]
[WhiteElo "1682"]
[BlackElo "1451"]
[Annotator "NA RC"]
[PlyCount "94"]
[EventDate "2022.06.25"]
[EventType "swiss"]
[EventCountry "POL"]
[SourceTitle "playchess.com"]
[Source "ChessBase"]
[SourceQuality "1"]
[TimeControl "5400+30"]

1. e4 {[%emt 0:00:03]} e5 {[%emt 0:00:04]} 2. Nf3 {[%emt 0:00:19]} Nc6 {[%emt 0:00:05]} 3. Bc4 {[%emt 0:00:27]} Bc5 {[%emt 0:00:21]} 4. d3 {[%emt 0:00:18]} Nf6 {[%emt 0:00:31]} 5. Bb3 {[%emt 0:00:14]} O-O {[%emt 0:00:59]} 6. O-O {[%emt 0:00:07]} d6 {[%emt 0:00:20]} 7. c3 {[%emt 0:00:13]} a6 {[%emt 0:00:26]} 8. a4 {[%emt 0:00:55]} Bb6 {[%emt 0:00:46]} 9. Nbd2 {[%emt 0:00:41]} Ne7 {[%emt 0:00:23]} 10. Nc4 {[%emt 0:00:30]} Ba7 {[%emt 0:00:40]} 11. Bg5 {[%emt 0:01:57]} Ng6 {[%emt 0:03:28]} 12. Nh4 {[%emt 0:05:48]} Nxh4 {[%emt 0:05:33]} 13. Bxh4 {[%emt 0:00:11]} h6 {[%emt 0:12:58]} 14. Ne3 {[%emt 0:03:30]} g5 {[%emt 0:03:10]} 15. Bg3 {[%emt 0:00:26]} Qe7 {[%emt 0:05:45]} 16. Qf3 {[%emt 0:07:49]} Kg7 {[%emt 0:03:21]} 17. h3 {[%emt 0:06:27]} Be6 {[%emt 0:07:55]} 18. Bc2 {[%emt 0:01:17]} Rh8 {[%emt 0:09:26]} 19. Rad1 {[%emt 0:01:46]} c5 {[%emt 0:01:21]} 20. Rfe1 {[%emt 0:18:04]} Qd7 {[%emt 0:07:22]} 21. Nf5+ {[%emt 0:20:00]} Bxf5 {[%emt 0:00:53]} 22. exf5 {[%emt 0:00:07]} Qc6 {[%emt 0:04:10]} 23. Qe2 {[%emt 0:05:18]} Qd7 {[%emt 0:09:23]} 24. Kh2 {[%emt 0:04:39]} Rae8 {[%emt 0:05:56]} 25. Qd2 {[%emt 0:03:27]} Nd5 {[%emt 0:06:17]} 26. Bb3 {[%emt 0:00:36]} Nf4 {[%emt 0:04:10]} 27. Bxf4 {[%emt 0:01:36]} exf4 {[%emt 0:00:59]} 28. f6+ {[%emt 0:00:56]} Kxf6 {[%emt 0:00:41]} 29. Bd5 {[%emt 0:00:41]} Re5 {[%emt 0:01:39]} 30. Rxe5 {[%emt 0:00:44]} dxe5 {[%emt 0:00:09]} 31. c4 {[%emt 0:00:23]} b6 {[%emt 0:00:52]} 32. b3 {[%emt 0:00:56]} Kg7 {[%emt 0:00:57]} 33. Qe2 {[%emt 0:01:08]} Qd6 {[%emt 0:00:53]} 34. Qe4 {[%emt 0:01:34]} Rd8 {[%emt 0:00:24]} 35. Re1 {[%emt 0:00:13]} Bb8 {[%emt 0:00:12]} 36. f3 {[%emt 0:01:50]} Qg6 {[%emt 0:01:03]} 37. Qe2 {[%emt 0:00:05]} a5 {[%emt 0:00:27]} 38. Qf2 {[%emt 0:00:45]} h5 {[%emt 0:01:06]} 39. Qe2 {[%emt 0:03:39]} Bd6 {[%emt 0:01:26]} 40. Kg1 {[%emt 0:00:30]} f5 {[%emt 0:00:45]} 41. Qb2 {[%emt 0:01:59]} Qf6 {[%emt 0:00:33]} 42. Qe2 {[%emt 0:00:14]} h4 {[%emt 0:00:38]} 43. Qd1 {[%emt 0:00:34]} Rd7 {[%emt 0:00:27]} 44. Bc6 {[%emt 0:00:57]} Rc7 {[%emt 0:00:15]} 45. Bd5 {[%emt 0:00:10]} Ra7 {[%emt 0:00:10]} 46. Re2 {[%emt 0:01:16]} Rc7 {[%emt 0:00:43]} 47. Ra2 {[%emt 0:01:20]} Ra7 {[%emt 0:00:12]} 1/2-1/2

[Event "Krakow Championship-C 2022"]
[Site "Krakow"]
[Date "2022.07.01"]
[Round "8.5"]
[White "Kuznik, Kamil"]
[Black "Pawlak, Emilia"]
[Result "1-0"]
[ECO "B36"]
[WhiteElo "1456"]
[BlackElo "1477"]
[Annotator "NA RC"]
[PlyCount "69"]
[EventDate "2022.06.25"]
[EventType "swiss"]
[EventCountry "POL"]
[SourceTitle "playchess.com"]
[Source "ChessBase"]
[SourceQuality "1"]
[TimeControl "5400+30"]

1. e4 {[%emt 0:00:02]} c5 {[%emt 0:00:07]} 2. Nf3 {[%emt 0:00:05]} g6 {[%emt 0:00:08]} 3. d4 {[%emt 0:00:09]} cxd4 {[%emt 0:00:05]} 4. Nxd4 {[%emt 0:00:04]} Nc6 {[%emt 0:00:06]} 5. c4 {[%emt 0:00:24]} Nf6 {[%emt 0:00:34]} 6. Nc3 {[%emt 0:00:09]} Nxd4 {[%emt 0:00:21]} 7. Qxd4 {[%emt 0:00:13]} d6 {[%emt 0:00:24]} 8. Be2 {[%emt 0:02:14]} Bg7 {[%emt 0:00:09]} 9. Be3 {[%emt 0:00:36]} O-O {[%emt 0:00:07]} 10. Qd2 {[%emt 0:00:27]} a5 {[%emt 0:02:31]} 11. O-O {[%emt 0:00:41]} a4 {[%emt 0:00:05]} 12. Bh6 {[%emt 0:01:15]} a3 {[%emt 0:01:12]} 13. Bxg7 {[%emt 0:02:11]} Kxg7 {[%emt 0:00:51]} 14. b3 {[%emt 0:00:43]} Be6 {[%emt 0:01:46]} 15. Rad1 {[%emt 0:01:08]} Qa5 {[%emt 0:04:06]} 16. Bf3 {[%emt 0:02:56]} Rfd8 {[%emt 0:06:11]} 17. Qe3 {[%emt 0:02:42]} Rab8 {[%emt 0:04:10]} 18. Nd5 {[%emt 0:01:07]} Bxd5 {[%emt 0:01:05]} 19. exd5 {[%emt 0:00:25]} Re8 {[%emt 0:00:41]} 20. Rc1 {[%emt 0:10:11]} Nd7 {[%emt 0:03:35]} 21. Rfe1 {[%emt 0:08:41]} Nc5 {[%emt 0:10:18]} 22. h4 {[%emt 0:05:00]} h5 {[%emt 0:05:51]} 23. Bxh5 {[%emt 0:09:47]} b5 {[%emt 0:11:23]} 24. Be2 {[%emt 0:13:37]} bxc4 {[%emt 0:01:55]} 25. Bxc4 {[%emt 0:00:22]} Nd7 {[%emt 0:03:24]} 26. h5 {[%emt 0:01:26]} Ne5 {[%emt 0:07:18]} 27. hxg6 {[%emt 0:00:34]} Nxg6 {[%emt 0:04:08]} 28. Qd4+ {[%emt 0:01:07]} Kg8 {[%emt 0:00:39]} 29. Re3 {[%emt 0:01:24]} Qc7 {[%emt 0:00:45]} 30. Rce1 {[%emt 0:00:59]} Qd7 {[%emt 0:00:29]} 31. Bd3 {[%emt 0:00:43]} Rbc8 {[%emt 0:02:10]} 32. Bxg6 {[%emt 0:02:38]} fxg6 {[%emt 0:00:05]} 33. Rh3 {[%emt 0:00:26]} e5 {[%emt 0:03:55]} 34. dxe6 {[%emt 0:00:27]} Qg7 {[%emt 0:00:10]} 35. Qxd6 {[%emt 0:00:33]} 1-0

[Event "Krakow Championship-C 2022"]
[Site "Krakow"]
[Date "2022.07.01"]
[Round "8.6"]
[White "Olszewski, Antoni"]
[Black "Niczyporuk, Jakub"]
[Result "0-1"]
[ECO "B27"]
[WhiteElo "1532"]
[BlackElo "1363"]
[Annotator "NA RC"]
[PlyCount "92"]
[EventDate "2022.06.25"]
[EventType "swiss"]
[EventCountry "POL"]
[SourceTitle "playchess.com"]
[Source "ChessBase"]
[SourceQuality "1"]
[TimeControl "5400+30"]

1. e4 {[%emt 0:00:06]} c5 {[%emt 0:00:07]} 2. Nf3 {[%emt 0:00:16]} g6 {[%emt 0:00:07]} 3. d4 {[%emt 0:00:31]} cxd4 {[%emt 0:00:07]} 4. Qxd4 {[%emt 0:01:21]} Nf6 {[%emt 0:00:09]} 5. e5 {[%emt 0:00:11]} Nc6 {[%emt 0:00:05]} 6. Qa4 {[%emt 0:02:33]} Nd5 {[%emt 0:00:57]} 7. c4 {[%emt 0:01:29]} Nb6 {[%emt 0:02:20]} 8. Qc2 {[%emt 0:03:40]} Bg7 {[%emt 0:01:43]} 9. Nc3 {[%emt 0:03:48]} d5 {[%emt 0:06:26]} 10. Nxd5 {[%emt 0:11:49]} Nxe5 {[%emt 0:02:12]} 11. Nxe5 {[%emt 0:02:58]} Bxe5 {[%emt 0:03:19]} 12. Nxb6 {[%emt 0:05:48]} Qxb6 {[%emt 0:00:46]} 13. Bd3 {[%emt 0:00:47]} O-O {[%emt 0:00:57]} 14. O-O {[%emt 0:00:57]} Be6 {[%emt 0:01:14]} 15. Be3 {[%emt 0:09:21]} Qc7 {[%emt 0:01:04]} 16. h3 {[%emt 0:02:16]} f5 {[%emt 0:04:32]} 17. f4 {[%emt 0:04:55]} Bg7 {[%emt 0:01:46]} 18. Rae1 {[%emt 0:05:27]} Bf7 {[%emt 0:02:17]} 19. g4 {[%emt 0:05:11]} fxg4 {[%emt 0:05:18]} 20. hxg4 {[%emt 0:00:19]} e5 {[%emt 0:07:18]} 21. f5 {[%emt 0:04:50]} e4 {[%emt 0:03:40]} 22. Bxe4 {[%emt 0:02:27]} Qg3+ {[%emt 0:06:05]} 23. Qg2 {[%emt 0:00:17]} Qxg2+ {[%emt 0:00:14]} 24. Kxg2 {[%emt 0:00:57]} Bxc4 {[%emt 0:01:04]} 25. Rf2 {[%emt 0:03:43]} gxf5 {[%emt 0:04:32]} 26. gxf5 {[%emt 0:01:55]} Bxa2 {[%emt 0:00:57]} 27. b4 {[%emt 0:09:16]} Rae8 {[%emt 0:01:52]} 28. Bc5 {[%emt 0:02:32]} Rxe4 {[%emt 0:04:37]} 29. Rxe4 {[%emt 0:05:08]} Bd5 {[%emt 0:00:11]} 30. Rfe2 {[%emt 0:03:12]} Rxf5 {[%emt 0:00:55]} 31. Kg3 {[%emt 0:01:14]} Bxe4 {[%emt 0:00:07]} 32. Rxe4 {[%emt 0:00:04]} Re5 {[%emt 0:00:47]} 33. Rg4 {[%emt 0:00:56]} Rd5 {[%emt 0:04:03]} 34. Bxa7 {[%emt 0:00:48]} Kf7 {[%emt 0:00:47]} 35. Kf3 {[%emt 0:00:20]} h5 {[%emt 0:00:38]} 36. Rg2 {[%emt 0:03:08]} Rf5+ {[%emt 0:01:06]} 37. Ke4 {[%emt 0:00:44]} Rb5 {[%emt 0:02:51]} 38. Bc5 {[%emt 0:00:34]} b6 {[%emt 0:00:28]} 39. Bd6 {[%emt 0:01:04]} h4 {[%emt 0:01:12]} 40. Rg1 {[%emt 0:02:22]} Bf6 {[%emt 0:00:47]} 41. Rf1 {[%emt 0:00:50]} Ke6 {[%emt 0:00:16]} 42. Rd1 {[%emt 0:00:45]} h3 {[%emt 0:01:45]} 43. Kf3 {[%emt 0:00:23]} Rd5 {[%emt 0:01:10]} 44. Rxd5 {[%emt 0:00:06]} Kxd5 {[%emt 0:00:05]} 45. Bc7 {[%emt 0:00:53]} b5 {[%emt 0:00:42]} 46. Kg4 {[%emt 0:00:13]} Be5 {[%emt 0:00:20]} 0-1

[Event "Krakow Championship-C 2022"]
[Site "Krakow"]
[Date "2022.07.01"]
[Round "8.7"]
[White "Wandor, Adam"]
[Black "Mielcuch, Karol"]
[Result "1-0"]
[ECO "B44"]
[WhiteElo "1456"]
[BlackElo "1276"]
[Annotator "NA RC"]
[PlyCount "93"]
[EventDate "2022.06.25"]
[EventType "swiss"]
[EventCountry "POL"]
[SourceTitle "playchess.com"]
[Source "ChessBase"]
[SourceQuality "1"]
[TimeControl "5400+30"]

1. e4 {[%emt 0:00:02]} c5 {[%emt 0:00:03]} 2. Nf3 {[%emt 0:00:07]} e6 {[%emt 0:00:09]} 3. d4 {[%emt 0:00:08]} cxd4 {[%emt 0:00:03]} 4. Nxd4 {[%emt 0:00:06]} Nc6 {[%emt 0:00:04]} 5. Be3 {[%emt 0:02:27]} Qc7 {[%emt 0:00:08]} 6. Be2 {[%emt 0:01:23]} a6 {[%emt 0:00:17]} 7. O-O {[%emt 0:01:26]} b5 {[%emt 0:00:20]} 8. Nd2 {[%emt 0:02:05]} Bb7 {[%emt 0:01:50]} 9. c4 {[%emt 0:09:05]} bxc4 {[%emt 0:01:31]} 10. Nxc4 {[%emt 0:08:32]} Nf6 {[%emt 0:06:31]} 11. f3 {[%emt 0:03:43]} Bc5 {[%emt 0:02:55]} 12. Nxc6 {[%emt 0:08:13]} Bxe3+ {[%emt 0:00:17]} 13. Nxe3 {[%emt 0:00:07]} Bxc6 {[%emt 0:00:05]} 14. Qd4 {[%emt 0:02:51]} O-O {[%emt 0:00:27]} 15. Rac1 {[%emt 0:01:41]} Qa5 {[%emt 0:01:06]} 16. a3 {[%emt 0:03:54]} Qg5 {[%emt 0:01:23]} 17. Rc5 {[%emt 0:02:39]} Qg6 {[%emt 0:02:25]} 18. Bd3 {[%emt 0:04:46]} Nh5 {[%emt 0:03:28]} 19. e5 {[%emt 0:08:34]} Qh6 {[%emt 0:01:17]} 20. f4 {[%emt 0:05:05]} f5 {[%emt 0:02:29]} 21. Be2 {[%emt 0:08:18]} Rab8 {[%emt 0:11:03]} 22. Bxh5 {[%emt 0:01:28]} Qxh5 {[%emt 0:00:12]} 23. b4 {[%emt 0:00:48]} Qe2 {[%emt 0:05:36]} 24. Rf2 {[%emt 0:01:08]} Qe1+ {[%emt 0:01:13]} 25. Rf1 {[%emt 0:00:18]} Qh4 {[%emt 0:01:03]} 26. Rf2 {[%emt 0:03:18]} Rfc8 {[%emt 0:01:32]} 27. g3 {[%emt 0:01:13]} Qe7 {[%emt 0:00:28]} 28. Rfc2 {[%emt 0:00:22]} Qe8 {[%emt 0:02:44]} 29. Qd1 {[%emt 0:05:31]} Rd8 {[%emt 0:09:07]} 30. Rd2 {[%emt 0:01:49]} Rb5 {[%emt 0:06:45]} 31. Rxc6 {[%emt 0:01:00]} d5 {[%emt 0:01:37]} 32. Rxa6 {[%emt 0:01:27]} Qe7 {[%emt 0:01:59]} 33. Rc6 {[%emt 0:02:08]} Qa7 {[%emt 0:06:14]} 34. Rd3 {[%emt 0:00:30]} Rb6 {[%emt 0:02:45]} 35. Rc5 {[%emt 0:03:59]} Ra6 {[%emt 0:00:48]} 36. Nxd5 {[%emt 0:04:09]} exd5 {[%emt 0:00:41]} 37. Rdxd5 {[%emt 0:00:15]} Rf8 {[%emt 0:01:20]} 38. Rd8 {[%emt 0:00:37]} Rxa3 {[%emt 0:01:47]} 39. Qd5+ {[%emt 0:00:10]} Qf7 {[%emt 0:00:21]} 40. Rxf8+ {[%emt 0:00:05]} Kxf8 {[%emt 0:00:17]} 41. Rc8+ {[%emt 0:00:12]} Qe8 {[%emt 0:00:23]} 42. Qd6+ {[%emt 0:00:05]} Kf7 {[%emt 0:00:17]} 43. e6+ {[%emt 0:00:32]} Qxe6 {[%emt 0:00:24]} 44. Rf8+ {[%emt 0:00:07]} Kg6 {[%emt 0:00:12]} 45. Qxe6+ {[%emt 0:00:04]} Kh5 {[%emt 0:00:07]} 46. Qxf5+ {[%emt 0:00:07]} Kh6 {[%emt 0:00:10]} 47. Qg5# 1-0

[Event "Krakow Championship-C 2022"]
[Site "Krakow"]
[Date "2022.07.01"]
[Round "8.8"]
[White "Pozniak, Yunna"]
[Black "Chmielewski, Miroslaw"]
[Result "0-1"]
[ECO "B22"]
[WhiteElo "1288"]
[BlackElo "1571"]
[Annotator "NA RC"]
[PlyCount "106"]
[EventDate "2022.06.25"]
[EventType "swiss"]
[EventCountry "POL"]
[SourceTitle "playchess.com"]
[Source "ChessBase"]
[SourceQuality "1"]
[TimeControl "5400+30"]

1. e4 {[%emt 0:00:04]} c5 {[%emt 0:01:39]} 2. c3 {[%emt 0:00:16]} Nf6 {[%emt 0:02:44]} 3. e5 {[%emt 0:01:25]} Nd5 {[%emt 0:00:18]} 4. d4 {[%emt 0:01:42]} e6 {[%emt 0:00:58]} 5. Nf3 {[%emt 0:01:47]} Nc6 {[%emt 0:00:48]} 6. Bd3 {[%emt 0:09:21]} d6 {[%emt 0:07:31]} 7. O-O {[%emt 0:05:15]} a6 {[%emt 0:10:30]} 8. a3 {[%emt 0:06:19]} Be7 {[%emt 0:01:09]} 9. Nbd2 {[%emt 0:02:27]} Nf4 {[%emt 0:01:11]} 10. Bc2 {[%emt 0:02:44]} cxd4 {[%emt 0:01:24]} 11. cxd4 {[%emt 0:01:40]} d5 {[%emt 0:00:14]} 12. Nb3 {[%emt 0:03:47]} Ng6 {[%emt 0:00:10]} 13. Qd3 {[%emt 0:04:03]} b6 {[%emt 0:03:14]} 14. Be3 {[%emt 0:04:21]} a5 {[%emt 0:02:18]} 15. Rfe1 {[%emt 0:02:43]} Ba6 {[%emt 0:01:23]} 16. Qd2 {[%emt 0:01:02]} a4 {[%emt 0:11:19]} 17. Nc1 {[%emt 0:02:00]} Bc4 {[%emt 0:00:15]} 18. Bd3 {[%emt 0:04:51]} b5 {[%emt 0:02:44]} 19. Bxc4 {[%emt 0:04:45]} bxc4 {[%emt 0:00:34]} 20. Qc2 {[%emt 0:01:49]} Qd7 {[%emt 0:07:09]} 21. Bd2 {[%emt 0:04:46]} O-O {[%emt 0:00:50]} 22. Ne2 {[%emt 0:01:35]} Na5 {[%emt 0:01:47]} 23. Bxa5 {[%emt 0:02:17]} Rxa5 {[%emt 0:00:08]} 24. Nc3 {[%emt 0:02:43]} Nf4 {[%emt 0:03:18]} 25. Red1 {[%emt 0:01:42]} Rb8 {[%emt 0:00:21]} 26. Ne1 {[%emt 0:03:57]} Rb3 {[%emt 0:05:25]} 27. Ne2 {[%emt 0:04:18]} Nxe2+ {[%emt 0:01:00]} 28. Qxe2 {[%emt 0:01:44]} Rab5 {[%emt 0:00:24]} 29. Rd2 {[%emt 0:01:23]} Qb7 {[%emt 0:00:21]} 30. Ra2 {[%emt 0:00:27]} Bd8 {[%emt 0:02:15]} 31. Nf3 {[%emt 0:00:44]} Ba5 {[%emt 0:02:25]} 32. Rc2 {[%emt 0:00:24]} h6 {[%emt 0:00:24]} 33. h3 {[%emt 0:01:19]} Rd3 {[%emt 0:04:42]} 34. Kh1 {[%emt 0:01:56]} Bb6 {[%emt 0:04:48]} 35. Rd2 {[%emt 0:01:05]} Rbb3 {[%emt 0:00:41]} 36. Ra1 {[%emt 0:02:10]} Qa6 {[%emt 0:02:20]} 37. Rad1 {[%emt 0:00:55]} Rxd2 {[%emt 0:00:55]} 38. Rxd2 {[%emt 0:00:17]} Qb5 {[%emt 0:00:24]} 39. Kh2 {[%emt 0:00:40]} Ba5 {[%emt 0:00:36]} 40. Rc2 {[%emt 0:00:18]} Qb6 {[%emt 0:02:22]} 41. Kh1 {[%emt 0:00:55]} Rd3 {[%emt 0:01:04]} 42. Kh2 {[%emt 0:00:53]} Qb3 {[%emt 0:00:23]} 43. Kh1 {[%emt 0:00:49]} Qa2 {[%emt 0:00:56]} 44. Rc1 {[%emt 0:01:33]} Rb3 {[%emt 0:01:02]} 45. Rc2 {[%emt 0:02:00]} Qb1+ {[%emt 0:00:34]} 46. Kh2 {[%emt 0:00:31]} Rd3 {[%emt 0:00:18]} 47. Kg3 {[%emt 0:01:28]} Rd1 {[%emt 0:03:22]} 48. Kh2 {[%emt 0:01:08]} Bb6 {[%emt 0:02:36]} 49. Rd2 {[%emt 0:01:02]} Rh1+ {[%emt 0:00:13]} 50. Kg3 {[%emt 0:00:03]} Qg6+ {[%emt 0:00:12]} 51. Kf4 {[%emt 0:02:19]} Qxg2 {[%emt 0:00:12]} 52. Rd1 {[%emt 0:02:04]} Rxh3 {[%emt 0:01:04]} 53. Ke3 {[%emt 0:02:20]} Qg5# 0-1

[Event "Krakow Championship-C 2022"]
[Site "Krakow"]
[Date "2022.07.02"]
[Round "9.1"]
[White "Gazda, Jacek"]
[Black "Andriienko, Artom"]
[Result "0-1"]
[ECO "B92"]
[WhiteElo "1418"]
[BlackElo "1588"]
[Annotator "NA RC"]
[PlyCount "80"]
[EventDate "2022.06.25"]
[EventType "swiss"]
[EventCountry "POL"]
[SourceTitle "playchess.com"]
[Source "ChessBase"]
[SourceQuality "1"]
[TimeControl "5400+30"]

1. e4 {[%emt 0:34:03]} c5 {[%emt 0:00:09]} 2. Nf3 {[%emt 0:00:19]} d6 {[%emt 0:00:08]} 3. d4 {[%emt 0:00:06]} cxd4 {[%emt 0:00:05]} 4. Nxd4 {[%emt 0:00:07]} Nf6 {[%emt 0:00:07]} 5. Nc3 {[%emt 0:00:02]} a6 {[%emt 0:00:07]} 6. Be2 {[%emt 0:00:10]} e5 {[%emt 0:00:07]} 7. Nb3 {[%emt 0:00:04]} Be6 {[%emt 0:00:08]} 8. O-O {[%emt 0:00:08]} Nbd7 {[%emt 0:00:27]} 9. Be3 {[%emt 0:00:38]} b5 {[%emt 0:01:14]} 10. a4 {[%emt 0:00:59]} b4 {[%emt 0:02:18]} 11. Nd5 {[%emt 0:00:30]} Bxd5 {[%emt 0:10:28]} 12. exd5 {[%emt 0:00:12]} Be7 {[%emt 0:09:33]} 13. a5 {[%emt 0:01:45]} Qb8 {[%emt 0:12:59]} 14. Ra4 {[%emt 0:06:13]} Qb7 {[%emt 0:07:40]} 15. Bc4 {[%emt 0:03:15]} O-O {[%emt 0:01:24]} 16. Qd2 {[%emt 0:02:33]} Rfb8 {[%emt 0:00:46]} 17. f3 {[%emt 0:01:52]} Ne8 {[%emt 0:04:35]} 18. Rd1 {[%emt 0:02:02]} Nc5 {[%emt 0:07:00]} 19. Nxc5 {[%emt 0:00:17]} dxc5 {[%emt 0:00:05]} 20. b3 {[%emt 0:11:35]} Nd6 {[%emt 0:01:57]} 21. Qe2 {[%emt 0:02:23]} Rc8 {[%emt 0:07:45]} 22. Bf2 {[%emt 0:03:10]} f6 {[%emt 0:01:11]} 23. Re1 {[%emt 0:02:36]} Bf8 {[%emt 0:00:30]} 24. Qd3 {[%emt 0:01:04]} Kh8 {[%emt 0:01:20]} 25. c3 {[%emt 0:03:27]} Qd7 {[%emt 0:09:16]} 26. Bxa6 {[%emt 0:01:25]} c4 {[%emt 0:00:07]} 27. Bxc8 {[%emt 0:01:04]} Qxa4 {[%emt 0:00:07]} 28. bxa4 {[%emt 0:00:49]} cxd3 {[%emt 0:00:06]} 29. cxb4 {[%emt 0:07:33]} Nxc8 {[%emt 0:06:15]} 30. Bc5 {[%emt 0:01:23]} Bxc5+ {[%emt 0:00:03]} 31. bxc5 Ne7 32. d6 {[%emt 0:00:54]} Nc6 {[%emt 0:00:34]} 33. Rd1 {[%emt 0:00:30]} Kg8 {[%emt 0:00:12]} 34. Rxd3 {[%emt 0:00:26]} Kf7 {[%emt 0:00:03]} 35. d7 Ke7 {[%emt 0:00:05]} 36. Rd6 {[%emt 0:02:41]} Nxa5 {[%emt 0:00:05]} 37. Kf2 {[%emt 0:00:22]} Kd8 {[%emt 0:00:39]} 38. c6 {[%emt 0:01:12]} Kc7 {[%emt 0:00:05]} 39. Re6 {[%emt 0:00:32]} Nxc6 {[%emt 0:00:00]} 40. Re8 {[%emt 0:00:37]} Rd8 0-1

[Event "Krakow Championship-C 2022"]
[Site "Krakow"]
[Date "2022.07.02"]
[Round "9.2"]
[White "Niczyporuk, Jakub"]
[Black "Piddubna, Bozhena"]
[Result "0-1"]
[ECO "A18"]
[WhiteElo "1363"]
[BlackElo "1534"]
[Annotator "NA RC"]
[PlyCount "52"]
[EventDate "2022.06.25"]
[EventType "swiss"]
[EventCountry "POL"]
[SourceTitle "playchess.com"]
[Source "ChessBase"]
[SourceQuality "1"]
[TimeControl "5400+30"]

1. c4 {[%emt 0:00:02]} Nf6 {[%emt 0:01:49]} 2. Nc3 {[%emt 0:00:06]} e6 {[%emt 0:00:19]} 3. e4 {[%emt 0:00:07]} d5 {[%emt 0:00:16]} 4. cxd5 {[%emt 0:00:07]} exd5 {[%emt 0:00:18]} 5. e5 {[%emt 0:00:09]} Ne4 {[%emt 0:04:48]} 6. Nf3 {[%emt 0:02:55]} Nc6 {[%emt 0:07:17]} 7. d4 {[%emt 0:01:44]} Bb4 {[%emt 0:01:40]} 8. Qc2 {[%emt 0:01:00]} Bg4 {[%emt 0:02:56]} 9. Be3 {[%emt 0:07:28]} O-O {[%emt 0:02:45]} 10. Bd3 {[%emt 0:05:41]} f5 {[%emt 0:07:31]} 11. h3 {[%emt 0:12:58]} Bxf3 {[%emt 0:05:05]} 12. gxf3 {[%emt 0:08:54]} Ng5 {[%emt 0:01:51]} 13. O-O-O f4 14. h4 {[%emt 0:02:42]} Nxf3 {[%emt 0:02:03]} 15. Bxh7+ {[%emt 0:02:11]} Kh8 {[%emt 0:01:27]} 16. h5 {[%emt 0:03:11]} fxe3 {[%emt 0:02:52]} 17. h6 {[%emt 0:01:25]} g5 {[%emt 0:00:16]} 18. Qg6 {[%emt 0:03:57]} Qe7 {[%emt 0:00:50]} 19. Nxd5 {[%emt 0:05:08]} Qxh7 {[%emt 0:01:52]} 20. Qg7+ {[%emt 0:02:47]} Qxg7 {[%emt 0:00:10]} 21. hxg7+ {[%emt 0:00:01]} Kxg7 {[%emt 0:00:15]} 22. Nxc7 {[%emt 0:00:03]} e2 {[%emt 0:00:31]} 23. Ne6+ {[%emt 0:00:40]} Kg6 {[%emt 0:00:20]} 24. Nxf8+ {[%emt 0:00:46]} Rxf8 {[%emt 0:00:09]} 25. a3 {[%emt 0:01:01]} exd1=Q+ 26. Rxd1 {[%emt 0:00:00]} Bd2+ {[%emt 0:00:11]} 0-1

[Event "Krakow Championship-C 2022"]
[Site "Krakow"]
[Date "2022.07.02"]
[Round "9.3"]
[White "Jaromin, Maciej"]
[Black "Kuznik, Kamil"]
[Result "0-1"]
[ECO "E80"]
[WhiteElo "1479"]
[BlackElo "1456"]
[Annotator "NA RC"]
[PlyCount "70"]
[EventDate "2022.06.25"]
[EventType "swiss"]
[EventCountry "POL"]
[SourceTitle "playchess.com"]
[Source "ChessBase"]
[SourceQuality "1"]
[TimeControl "5400+30"]

1. d4 {[%emt 0:00:01]} Nf6 {[%emt 0:00:05]} 2. c4 {[%emt 0:00:05]} g6 {[%emt 0:00:05]} 3. f3 {[%emt 0:00:04]} d6 {[%emt 0:00:09]} 4. e4 {[%emt 0:00:11]} Bg7 {[%emt 0:00:09]} 5. Nc3 {[%emt 0:00:06]} Nbd7 {[%emt 0:00:58]} 6. Nh3 {[%emt 0:00:14]} O-O {[%emt 0:00:12]} 7. Be3 {[%emt 0:00:09]} c5 {[%emt 0:00:14]} 8. d5 {[%emt 0:00:08]} Ne8 {[%emt 0:01:53]} 9. Qd2 {[%emt 0:00:36]} f5 {[%emt 0:00:52]} 10. exf5 {[%emt 0:05:49]} Rxf5 {[%emt 0:00:52]} 11. Bd3 {[%emt 0:00:14]} Rf8 {[%emt 0:02:43]} 12. O-O-O {[%emt 0:00:48]} Ne5 {[%emt 0:00:47]} 13. Nf2 {[%emt 0:02:12]} a6 {[%emt 0:05:31]} 14. Kb1 {[%emt 0:01:16]} Bd7 {[%emt 0:06:14]} 15. Be2 {[%emt 0:00:18]} Nc7 {[%emt 0:02:35]} 16. f4 {[%emt 0:01:13]} Nf7 {[%emt 0:00:37]} 17. h4 {[%emt 0:00:33]} b5 {[%emt 0:00:46]} 18. h5 {[%emt 0:00:51]} bxc4 {[%emt 0:02:35]} 19. hxg6 {[%emt 0:01:46]} hxg6 {[%emt 0:01:46]} 20. g4 {[%emt 0:00:55]} Nb5 {[%emt 0:01:27]} 21. Qc2 {[%emt 0:16:43]} Nxc3+ {[%emt 0:01:31]} 22. bxc3 {[%emt 0:00:13]} Rb8+ {[%emt 0:00:27]} 23. Ka1 {[%emt 0:00:09]} Qa5 {[%emt 0:00:21]} 24. Bd2 {[%emt 0:00:47]} Ba4 {[%emt 0:00:34]} 25. Qxg6 {[%emt 0:00:11]} Nh8 {[%emt 0:01:31]} 26. Rxh8+ {[%emt 0:05:32]} Kxh8 {[%emt 0:00:55]} 27. Rh1+ {[%emt 0:00:06]} Kg8 {[%emt 0:00:13]} 28. Rh7 {[%emt 0:00:10]} Rf7 {[%emt 0:00:49]} 29. Ne4 {[%emt 0:02:56]} Bb3 {[%emt 0:01:22]} 30. Nf6+ {[%emt 0:04:59]} exf6 {[%emt 0:00:12]} 31. Qb1 {[%emt 0:00:30]} Rb5 {[%emt 0:02:07]} 32. Rh3 {[%emt 0:01:06]} Rfb7 {[%emt 0:01:34]} 33. Rh1 {[%emt 0:01:36]} Bxa2 {[%emt 0:00:18]} 34. Qxa2 {[%emt 0:00:15]} Qxa2+ {[%emt 0:00:04]} 35. Kxa2 {[%emt 0:00:09]} Ra5# 0-1